bitfinex/quotes_ETHUSD_20250810
["timestamp","ask_amount","ask_price","bid_price","bid_amount"]
[1754836496799,0.1184,4211.7,4211.6,2.37439452]
[1754836496996,5.701,4211.8,4211.7,2.37433815]
[1754836497199,39.433,4211.8,4211.7,2.37433815]
[1754836497395,35.701,4211.8,4211.7,2.37433815]
[1754836497693,39.433,4211.8,4211.7,2.37433815]
[1754836498487,39.9257,4211.8,4211.7,2.59341955]
[1754836498693,35.701,4211.8,4211.7,2.59341955]
[1754836499025,0.1184,4211.9,4211.8,2.37428177]
[1754836499322,3.8504,4211.9,4211.8,3.03926317]
[1754836499488,0.002,4212.6,4212.5,2.37388724]
[1754836499819,38.2269,4212.6,4212.5,2.37388724]
[1754836500022,38.56716444,4212.6,4212.5,2.37388724]
[1754836500225,38.56716444,4212.6,4212.1,2.37406352]
[1754836500425,31.16156444,4212.5,4212.2,2.37405631]
[1754836500632,0.1184,4212.3,4211.8,2.37428177]
[1754836500835,0.34026444,4212.3,4212.2,2.37405631]
[1754836501031,4.2974,4212.3,4212.2,2.37405631]
[1754836501237,4.51926444,4212.3,4212.2,2.37405631]
[1754836501541,4.56496444,4212.3,4212.2,2.37405631]
[1754836502034,4.3431,4212.3,4212.2,2.37405631]
[1754836502202,4.56504112,4212.3,4212.2,2.37405631]
[1754836502531,4.56704112,4212.3,4212.2,2.37405631]
[1754836503314,4.3451,4212.3,4212.2,2.37405631]
[1754836503613,4.3451,4212.3,4212.2,2.59325734]
[1754836504011,4.56712285,4212.3,4212.2,2.37405631]
[1754836504643,0.83512537,4212.3,4212.2,2.37405631]
[1754836504830,3.8514,4212.3,4212.2,3.03924413]
[1754836505241,3.8514,4212.3,4212.2,2.59334413]
[1754836505447,4.3441,4212.3,4212.2,2.59334413]
[1754836506554,3.733,4212.3,4212.2,3.03924413]
[1754836507138,0.002,4212.3,4212.2,2.59334413]
[1754836507339,3.733,4212.3,4212.2,3.03924413]
[1754836507515,3.733,4212.3,4212.2,3.15764413]
[1754836508520,3.733,4212.3,4212.2,2.71174413]
[1754836508720,4.2257,4212.3,4212.2,2.59334413]
[1754836509252,34.70501,4212.3,4212.2,2.59334413]
[1754836509551,34.70501,4212.3,4211.5,2.37444944]
[1754836509552,35.15201,4212.3,4211.5,0.1184]
[1754836509853,34.71167566,4212.2,4211.6,0.21930603]
[1754836510037,36.26262104,4212.1,4211.7,0.21930603]
[1754836510351,30.0,4212.0,4211.9,2.3742254]
[1754836510550,30.4927,4212.0,4211.9,2.59353143]
[1754836510729,3.731,4212.1,4212.0,2.37416904]
[1754836510929,3.8494,4212.1,4212.0,2.59347507]
[1754836511321,3.8494,4212.1,4212.0,3.03937507]
[1754836511655,3.731,4212.1,4212.0,3.58073512]
[1754836511823,0.002,4212.3,4212.2,2.37405631]
[1754836511824,3.732,4212.3,4212.2,2.37405631]
[1754836512025,3.732,4212.3,4212.2,3.03926234]
[1754836512724,0.002,4212.3,4212.2,3.03926234]
[1754836513630,3.73,4212.5,4212.4,2.37394359]
[1754836513963,0.002,4212.6,4212.5,2.37388724]
[1754836514140,0.002,4212.6,4212.5,3.03909327]
[1754836514861,10.4927,4213.2,4212.5,3.03909327]
[1754836514862,1e-08,4213.0,4212.9,2.37366184]
[1754836515152,1e-08,4213.0,4212.9,2.59296787]
[1754836515449,1e-08,4213.0,4212.9,3.03886787]
[1754836515653,1e-08,4213.0,4212.9,2.59296787]
[1754836516062,1e-08,4213.0,4212.9,3.03886787]
[1754836516227,1e-08,4213.0,4212.9,3.8293552]
[1754836519662,1e-08,4213.0,4212.9,7.5583552]
[1754836520162,0.002,4213.7,4213.0,2.3736055]
[1754836520328,0.002,4213.7,4213.2,0.1184]
[1754836520527,0.002,4213.7,4213.2,2.71119886]
[1754836520729,1e-08,4213.3,4213.2,4.37449421]
[1754836521656,1e-08,4213.3,4213.2,4.39822913]
[1754836521861,1e-08,4213.7,4213.6,2.37326751]
[1754836522160,1e-08,4213.9,4213.6,4.06670603]
[1754836522369,1e-08,4213.9,4213.7,0.21930603]
[1754836522569,1e-08,4213.9,4213.8,6.3214609]
[1754836522931,1e-08,4213.9,4213.8,6.7869609]
[1754836525451,1e-08,4213.9,4213.8,3.0579609]
[1754836525979,0.47920001,4213.9,4213.8,2.5924609]
[1754836526484,10.0,4214.8,4213.8,2.5924609]
[1754836526485,10.04,4214.9,4214.8,2.37259181]
[1754836526684,0.1584,4214.9,4214.8,2.37259181]
[1754836526986,0.04,4214.9,4214.8,3.17467386]
[1754836527177,0.4792,4215.4,4215.3,2.37231039]
[1754836527686,0.17363254,4216.2,4215.7,2.3720853]
[1754836527890,0.1204,4216.3,4215.8,6.09902903]
[1754836528186,0.1204,4216.3,4216.2,2.37180399]
[1754836528350,0.002,4216.3,4216.2,2.37180399]
[1754836528785,30.4623,4216.3,4216.2,2.37180399]
[1754836528956,30.9415,4216.3,4216.2,2.37180399]
[1754836529161,33.25854068,4216.3,4216.2,2.37180399]
[1754836529482,33.25854068,4216.3,4216.1,2.37185392]
[1754836529686,30.4792,4216.2,4215.4,0.1184]
[1754836529887,30.0,4216.1,4215.9,2.37192369]
[1754836530062,0.1184,4215.7,4215.1,3.727]
[1754836530384,0.4792,4215.6,4215.5,2.37219784]
[1754836531393,0.9395,4215.6,4215.5,2.37219784]
[1754836532171,1.46789,4215.6,4215.4,2.37224583]
[1754836532498,30.9395,4215.5,4215.1,2.37240441]
[1754836532656,0.1184,4215.4,4215.3,2.37231039]
[1754836533067,0.5,4215.9,4215.7,2.3720853]
[1754836533068,3.726,4215.8,4215.7,2.3720853]
[1754836533255,33.726,4215.8,4215.7,2.3720853]
[1754836533461,36.62174068,4215.8,4215.6,2.37213521]
[1754836533661,30.9395,4215.7,4215.6,2.37213521]
[1754836533991,30.9395,4215.7,4215.3,2.3722723]
[1754836534162,6.16144068,4215.8,4214.8,0.1184]
[1754836534163,0.1184,4215.4,4214.8,0.1184]
[1754836534359,30.4792,4215.3,4215.2,2.37236667]
[1754836534566,1.41140355,4215.3,4214.7,3.725]
[1754836534766,0.9395,4215.2,4215.1,2.37240919]
[1754836534966,0.9395,4215.2,4214.9,2.3724962]
[1754836535161,0.4792,4215.1,4214.6,0.1184]
[1754836535659,30.9395,4215.0,4214.6,0.1184]
[1754836535859,30.0,4214.9,4214.6,2.3726875]
[1754836536097,30.0,4214.9,4214.1,2.49135299]
[1754836536098,0.1184,4214.7,4214.1,2.49135299]
[1754836536262,0.1184,4214.7,4213.9,3.725]
[1754836536263,0.9395,4214.6,4214.2,2.372912]
[1754836536468,0.1184,4214.3,4214.2,2.372912]
[1754836536676,0.5976,4214.3,4214.2,2.372912]
[1754836537373,0.1184,4214.3,4214.2,2.372912]
[1754836540597,0.5976,4214.3,4214.2,2.372912]
[1754836540771,31.0579,4214.3,4214.2,2.372912]
[1754836542082,37.09894068,4214.3,4213.6,0.04]
[1754836542374,37.09894068,4214.3,4213.7,0.21840249]
[1754836542375,0.1184,4214.0,4213.7,0.21840249]
[1754836542570,30.4792,4213.9,4213.7,2.37320716]
[1754836542770,0.5787,4214.0,4213.9,2.37309855]
[1754836542971,30.5787,4214.0,4213.9,2.37309855]
[1754836543320,0.1184,4214.0,4213.9,2.37309855]
[1754836543467,3.724,4214.3,4214.1,2.37294152]
[1754836543468,0.1184,4214.2,4214.1,2.37294152]
[1754836543884,0.1184,4214.2,4214.1,2.83844152]
[1754836544084,0.22319746,4215.2,4214.1,1.57752028]
[1754836544305,0.22319746,4215.2,4213.9,3.724]
[1754836544306,0.1184,4214.8,4214.7,2.37264589]
[1754836544471,0.002,4215.2,4214.7,6.78062311]
[1754836544666,0.002,4215.2,4215.1,0.1184]
[1754836545202,0.002,4215.2,4215.1,2.49082295]
[1754836545568,0.002,4215.6,4215.5,2.37219784]
[1754836545772,0.002,4215.6,4215.5,2.59063778]
[1754836545977,0.002,4215.6,4215.5,6.78013778]
[1754836546306,0.002,4215.6,4215.5,2.59063778]
[1754836546894,0.002,4215.6,4215.5,3.05613778]
[1754836547092,0.002,4215.6,4215.5,4.08977916]
[1754836547500,0.002,4215.6,4215.5,7.34827916]
[1754836547699,0.002,4215.6,4215.5,2.70903778]
[1754836548005,0.4892,4215.6,4215.5,2.59063778]
[1754836548207,0.002,4215.6,4215.5,2.70903778]
[1754836548373,0.002,4215.6,4215.5,3.16073778]
[1754836548570,0.002,4215.6,4215.5,2.70903778]
[1754836548985,0.002,4215.6,4215.5,3.16073778]
[1754836549185,0.002,4215.6,4215.5,4.08643916]
[1754836549715,1e-08,4215.6,4215.5,4.08643916]
[1754836551175,1e-08,4215.6,4215.5,3.63473916]
[1754836551391,1e-08,4215.6,4215.5,7.35773916]
[1754836551593,1e-08,4215.6,4215.5,6.43203778]
[1754836552177,1e-08,4215.6,4215.5,2.70903778]
[1754836552376,0.48720001,4215.6,4215.5,6.43203778]
[1754836552997,1e-08,4215.6,4215.5,6.88373778]
[1754836553616,1e-08,4215.6,4215.5,6.43203778]
[1754836554625,0.91950001,4215.6,4215.5,2.59063778]
[1754836554796,1.41950001,4215.6,4215.5,2.59063778]
[1754836555437,0.91950001,4215.6,4215.5,2.59063778]
[1754836555997,0.91950001,4215.6,4215.5,2.37219784]
[1754836556332,0.91950001,4215.6,4215.5,2.59084268]
[1754836556538,0.91950001,4215.6,4215.5,2.5908426]
[1754836556893,0.91950001,4215.6,4215.5,0.21863741]
[1754836557100,30.91950001,4215.6,4215.4,2.37224503]
[1754836557325,33.23654068,4215.5,4215.4,2.37224503]
[1754836557527,32.92264068,4215.5,4215.4,2.59089724]
[1754836557728,33.35494068,4215.5,4215.4,2.59089724]
[1754836558298,32.92264068,4215.5,4215.4,2.59089724]
[1754836558500,1e-08,4215.6,4215.5,2.37219784]
[1754836558717,1e-08,4215.6,4215.5,2.59085005]
[1754836559230,30.43230001,4215.6,4215.5,2.37219784]
[1754836559446,30.91950001,4215.6,4215.5,2.37219784]
[1754836559604,0.48720001,4215.6,4215.5,2.37219784]
[1754836559929,0.91950001,4215.6,4215.5,2.37219784]
[1754836561155,0.48720001,4215.6,4215.5,2.37219784]
[1754836561827,0.48720001,4215.6,4214.8,0.1184]
[1754836561828,30.91950001,4215.6,4215.4,2.37220552]
[1754836562031,33.23654068,4215.5,4215.4,2.37220552]
[1754836562242,33.57641993,4215.5,4215.3,2.37229249]
[1754836562418,30.22147925,4215.4,4215.3,2.37229249]
[1754836562623,31.25937925,4215.4,4215.3,2.37229249]
[1754836563646,0.11840001,4215.6,4215.5,2.37219784]
[1754836563826,30.11840001,4215.6,4215.5,2.37219784]
[1754836564019,33.08922243,4215.6,4215.5,2.37219784]
[1754836564226,32.86774069,4215.6,4215.5,2.37219784]
[1754836564419,0.11840001,4215.6,4215.5,2.37219784]
[1754836564743,0.11840001,4215.6,4215.5,6.76344855]
[1754836565142,0.11840001,4215.6,4215.5,2.59074855]
[1754836565143,0.60560001,4215.6,4215.5,2.59074855]
[1754836565549,30.60560001,4215.6,4215.5,2.59074855]
[1754836565844,30.60560001,4215.6,4215.5,2.37219784]
[1754836566010,33.35494069,4215.6,4215.5,2.37219784]
[1754836566211,32.92264069,4215.6,4215.5,2.37219784]
[1754836566412,0.11840001,4215.6,4215.5,2.59074311]
[1754836566648,1e-08,4215.6,4215.5,3.04244311]
[1754836568274,1e-08,4215.6,4215.5,2.59074311]
[1754836568558,0.48720001,4215.6,4215.5,2.59074311]
[1754836568758,30.48720001,4215.6,4215.5,0.21854527]
[1754836569061,33.23654069,4215.6,4215.5,0.21854527]
[1754836569261,33.78654069,4215.6,4215.5,0.21854527]
[1754836569557,33.78654069,4215.6,4215.1,0.001]
[1754836569761,0.55,4215.4,4215.2,0.21864859]
[1754836569963,0.1184,4215.2,4215.1,0.001]
[1754836570168,30.59030355,4215.2,4215.1,0.21969997]
[1754836570350,34.6538287,4215.2,4215.1,0.001]
[1754836570751,37.6538287,4215.2,4215.1,0.001]
[1754836571265,35.28146203,4215.2,4215.1,0.001]
[1754836571466,34.84916203,4215.2,4215.1,0.001]
[1754836571765,3.34005848,4215.2,4215.1,0.001]
[1754836571944,0.1184,4215.2,4215.1,2.37342295]
[1754836572146,0.1184,4215.2,4215.1,3.04384423]
[1754836572346,3.1184,4215.4,4215.3,2.37231039]
[1754836572645,3.34014281,4215.4,4215.1,0.001]
[1754836572963,0.70601428,4215.3,4215.2,0.21879743]
[1754836573161,3.1184,4215.4,4215.3,2.37231039]
[1754836573362,30.34026996,4215.4,4215.3,2.59110782]
[1754836573727,30.1184,4215.4,4215.3,2.59110782]
[1754836575266,30.1184,4215.4,4215.3,2.59124188]
[1754836578387,30.0,4215.4,4215.3,2.59124188]
[1754836578570,30.0,4215.5,4215.4,2.37225411]
[1754836578738,0.11840001,4215.6,4215.5,2.37219784]
[1754836578939,30.11840001,4215.6,4215.5,2.59112933]
[1754836579869,33.83840001,4215.6,4215.5,2.59112933]
[1754836580072,34.32050001,4215.6,4215.5,2.59112933]
[1754836580439,3.83840001,4215.6,4215.5,3.05847595]
[1754836580635,1e-08,4215.6,4215.5,3.05847595]
[1754836581139,1e-08,4215.6,4215.5,3.98538896]
[1754836581342,1e-08,4215.6,4215.5,3.51798896]
[1754836581566,1e-08,4215.6,4215.5,2.59107595]
[1754836581740,0.48210001,4215.6,4215.5,2.59107595]
[1754836583167,0.60050001,4215.6,4215.5,2.59107595]
[1754836584762,1.10050001,4215.6,4215.5,2.59107595]
[1754836587481,0.61840001,4215.6,4215.5,2.59107595]
[1754836587973,0.50000001,4215.6,4215.5,3.05847595]
[1754836588150,0.50000001,4215.6,4215.5,2.59107595]
[1754836588488,0.50000001,4215.6,4215.5,3.05847595]
[1754836589289,0.50000001,4215.6,4215.5,2.59107595]
[1754836590253,0.50000001,4215.6,4215.5,6.77647595]
[1754836590495,0.50000001,4215.6,4215.5,7.69134896]
[1754836590696,1e-08,4215.6,4215.5,7.80974896]
[1754836591608,1e-08,4215.6,4215.5,7.8096325]
[1754836592903,1e-08,4215.6,4215.5,4.0916325]
[1754836593119,0.002,4216.5,4216.2,2.37180399]
[1754836593262,0.002,4216.5,4216.4,2.37169149]
[1754836593263,1e-08,4216.5,4216.4,2.37169149]
[1754836593464,0.002,4217.2,4216.9,2.37137519]
[1754836593664,0.002,4217.2,4217.1,2.48969781]
[1754836593966,0.002,4217.2,4217.1,2.70818961]
[1754836594210,0.002,4217.2,4217.1,3.17558961]
[1754836594801,0.002,4217.2,4217.1,2.70818961]
[1754836594972,0.002,4217.2,4217.1,2.58978961]
[1754836594973,0.4841,4217.2,4217.1,2.58978961]
[1754836595486,0.002,4217.2,4217.1,2.58978961]
[1754836595695,0.002,4217.2,4217.1,0.2184918]
[1754836595863,0.9581,4217.2,4217.1,0.2184918]
[1754836596184,30.9581,4217.2,4216.3,3.717]
[1754836596501,2.37141236,4216.9,4216.4,0.2182499]
[1754836596808,32.37147098,4216.8,4216.5,0.2182499]
[1754836596974,0.55,4216.5,4215.9,2.3719716]
[1754836597177,3.4821,4216.8,4216.3,2.37172679]
[1754836597398,0.1184,4216.5,4216.1,2.37180532]
[1754836597573,30.4821,4216.4,4216.2,0.21832987]
[1754836597782,30.4821,4216.4,4215.9,0.1184]
[1754836597783,0.9561,4216.3,4215.9,0.1184]
[1754836598091,0.9561,4216.3,4216.1,2.37186024]
[1754836598309,30.4821,4216.2,4215.9,0.1184]
[1754836598597,0.1184,4216.0,4215.6,3.717]
[1754836598900,0.1184,4216.0,4215.8,2.37201669]
[1754836599069,0.1184,4216.0,4215.9,2.37197276]
[1754836599266,3.0,4216.7,4215.9,2.37197276]
[1754836599267,3.717,4216.8,4215.9,6.77475706]
[1754836599471,0.1184,4217.0,4216.4,0.1184]
[1754836599667,0.1184,4217.0,4216.9,2.37141027]
[1754836599895,0.002,4217.2,4217.1,2.37129781]
[1754836600583,0.002,4217.2,4217.1,6.77284568]
[1754836601372,0.002,4217.2,4217.1,2.58944568]
[1754836601772,0.002,4217.2,4217.1,6.30544568]
[1754836603620,0.4841,4217.2,4217.1,2.58944568]
[1754836603921,0.4841,4217.2,4217.1,2.37129781]
[1754836605100,0.4841,4217.2,4216.9,3.716]
[1754836605426,0.002,4217.2,4217.1,2.37129781]
[1754836606203,0.002,4217.2,4217.1,7.25785326]
[1754836606407,0.002,4217.2,4217.1,7.37625326]
[1754836608614,0.002,4217.2,4217.1,6.90885326]
[1754836608907,0.002,4217.2,4217.1,6.42274245]
[1754836609509,0.002,4217.2,4217.1,2.70774245]
[1754836609747,0.5015,4217.2,4217.1,6.30334245]
[1754836609963,0.002,4217.2,4217.1,6.30334245]
[1754836610263,0.002,4217.2,4217.1,6.77744245]
[1754836610460,0.002,4217.2,4217.1,6.89584245]
[1754836610662,0.002,4217.2,4217.1,7.82256772]
[1754836612060,0.002,4217.2,4217.1,4.10856772]
[1754836612254,0.002,4217.2,4217.1,7.82256772]
[1754836614560,1e-08,4217.2,4217.1,7.82256772]
[1754836614744,0.002,4217.7,4217.2,2.37124158]
[1754836615067,0.002,4217.7,4217.6,2.48941669]
[1754836615267,0.002,4217.7,4217.6,6.42146133]
[1754836616868,0.002,4217.7,4217.6,2.70746133]
[1754836617180,0.002,4217.7,4217.6,6.42046133]
[1754836620285,0.002,4217.7,4217.6,2.70746133]
[1754836620481,0.5015,4217.7,4217.6,6.42046133]
[1754836621256,0.002,4217.7,4217.6,6.42046133]
[1754836621648,0.002,4217.7,4217.6,6.89456133]
[1754836621854,0.002,4217.7,4217.6,7.82113038]
[1754836627891,0.002,4217.7,4217.6,4.10813038]
[1754836628092,0.002,4217.7,4217.6,7.34503038]
[1754836628483,0.002,4217.7,4217.6,7.81913038]
[1754836628990,0.002,4217.7,4217.6,7.34503038]
[1754836629163,0.5015,4217.7,4217.6,3.63403038]
[1754836629362,0.5015,4217.7,4217.6,6.41846133]
[1754836630498,0.002,4218.1,4217.7,2.37096047]
[1754836630696,0.002,4218.1,4218.0,2.37079184]
[1754836630899,0.002,4218.5,4218.4,2.37056703]
[1754836631085,0.002,4218.5,4218.4,6.41801167]
[1754836631872,0.002,4218.5,4218.4,6.89211167]
[1754836632521,0.04,4218.9,4218.5,2.37051084]
[1754836632721,0.04,4218.9,4218.8,2.37034227]
[1754836633018,0.04,4218.9,4218.8,6.29838691]
[1754836633223,0.04,4218.9,4218.8,6.41678691]
[1754836633692,0.5395,4218.9,4218.8,6.41714634]
[1754836633893,0.5395,4218.9,4218.8,2.70714634]
[1754836634090,0.5395,4218.9,4218.8,6.41714634]
[1754836634604,0.5395,4218.9,4218.8,6.41712736]
[1754836634923,0.9801,4218.9,4218.8,6.41712736]
[1754836635097,0.04,4218.9,4218.8,6.41712736]
[1754836636102,0.9801,4218.9,4218.8,6.41712736]
[1754836636830,0.9801,4218.9,4218.8,6.41612736]
[1754836637124,0.9801,4218.9,4218.8,0.21838509]
[1754836637326,0.5395,4218.9,4218.8,2.58876051]
[1754836637526,0.5395,4218.9,4218.8,6.29776051]
[1754836637927,0.5395,4218.9,4218.8,2.58876051]
[1754836638128,0.5395,4218.9,4218.8,6.29776051]
[1754836639840,0.9738,4218.9,4218.8,6.29776051]
[1754836640215,0.5395,4218.9,4218.8,6.29776051]
[1754836640615,0.5395,4218.9,4218.8,2.58876051]
[1754836640846,0.5395,4218.9,4218.8,6.29776051]
[1754836641748,0.5395,4218.9,4218.8,6.29779675]
[1754836641927,0.5395,4218.9,4218.8,2.58879675]
[1754836642131,0.04,4218.9,4218.8,6.29679675]
[1754836642438,0.04,4218.9,4218.8,7.63016178]
[1754836642749,0.002,4219.4,4218.8,7.63016178]
[1754836642750,1e-08,4219.0,4218.9,2.37028609]
[1754836642941,1e-08,4219.0,4218.9,2.58874057]
[1754836643246,1e-08,4219.0,4218.9,3.04354057]
[1754836643936,1e-08,4219.0,4218.9,6.75154057]
[1754836644116,1e-08,4219.0,4218.9,8.00995912]
[1754836645324,1e-08,4219.0,4218.9,3.84715912]
[1754836645648,1e-08,4219.0,4218.9,7.55415912]
[1754836646150,1e-08,4219.0,4218.9,8.00895912]
[1754836646522,1e-08,4219.0,4218.9,4.30195912]
[1754836646717,1e-08,4219.0,4218.9,8.03266198]
[1754836646923,1e-08,4219.0,4218.9,8.00895912]
[1754836647124,1e-08,4219.0,4218.9,8.12735912]
[1754836649238,1e-08,4219.0,4218.9,4.42035912]
[1754836649438,1e-08,4219.0,4218.9,8.12735912]
[1754836650464,1e-08,4219.0,4218.9,4.42035912]
[1754836650667,1e-08,4219.0,4218.9,8.12635912]
[1754836650842,1e-08,4219.0,4218.9,4.42035912]
[1754836651047,1e-08,4219.0,4218.9,8.12635912]
[1754836651664,1e-08,4219.0,4218.9,4.42035912]
[1754836651869,1e-08,4219.0,4218.9,8.12635912]
[1754836652652,1e-08,4219.4,4219.3,2.37006138]
[1754836652836,1e-08,4219.4,4219.3,6.76853584]
[1754836653058,1e-08,4219.4,4219.3,7.34173584]
[1754836653241,0.4921,4221.0,4219.7,2.36983131]
[1754836653446,0.4921,4221.0,4220.1,2.36961209]
[1754836653676,0.4343,4220.6,4220.1,6.29335813]
[1754836653870,0.4941,4220.2,4220.1,7.27806638]
[1754836654569,0.002,4220.2,4220.1,7.27806638]
[1754836654875,0.4921,4221.2,4220.8,2.3692191]
[1754836655049,0.4921,4221.2,4220.8,6.41136514]
[1754836656161,0.04,4221.9,4220.8,6.41136514]
[1754836656162,0.4921,4221.6,4220.8,6.41136514]
[1754836656478,0.4921,4221.6,4220.8,6.86616514]
[1754836656651,0.4921,4221.6,4220.8,7.78971143]
[1754836656979,0.4921,4221.6,4220.8,7.33491143]
[1754836657487,0.4921,4221.3,4220.8,7.33491143]
[1754836657657,0.04,4221.9,4220.8,7.33491143]
[1754836658008,0.4921,4221.4,4220.8,7.33391143]
[1754836659184,0.4921,4221.4,4220.8,7.78871143]
[1754836659384,0.4921,4221.4,4220.8,7.33391143]
[1754836659567,0.2915,4220.9,4220.8,7.33391143]
[1754836659964,0.2915,4220.9,4220.8,7.78871143]
[1754836660561,1e-08,4220.9,4220.8,7.78871143]
[1754836661589,1e-08,4220.9,4220.8,3.62891143]
[1754836661889,0.49210001,4220.9,4220.8,6.40936514]
[1754836662062,0.49210001,4220.9,4220.8,2.70536514]
[1754836662284,0.49210001,4220.9,4220.8,6.40936514]
[1754836663107,0.49210001,4220.9,4220.8,2.70536514]
[1754836663279,0.49210001,4220.9,4220.8,6.40936514]
[1754836663898,0.49210001,4220.9,4220.8,2.70536514]
[1754836664101,0.49210001,4220.9,4220.8,6.40836514]
[1754836665506,1e-08,4220.9,4220.8,7.74093143]
[1754836666980,0.49210001,4220.9,4220.8,7.28613143]
[1754836667176,0.49210001,4220.9,4220.8,6.40836514]
[1754836667680,0.93770001,4220.9,4220.8,2.70536514]
[1754836668105,0.47250001,4220.9,4220.8,6.1906191]
[1754836669296,0.91810001,4220.9,4220.8,6.1906191]
[1754836669516,0.47250001,4220.9,4220.8,2.4876191]
[1754836669766,0.91810001,4220.9,4220.8,2.4876191]
[1754836670785,30.91810001,4220.9,4219.6,0.4725]
[1754836670986,0.9181,4220.8,4220.5,2.36938751]
[1754836671213,1e-08,4220.9,4220.8,2.3692191]
[1754836671783,0.91810001,4220.9,4220.8,2.3692191]
[1754836671985,0.91810001,4220.9,4220.7,2.36927067]
[1754836672184,0.9181,4220.8,4220.7,2.36927067]
[1754836672921,0.4725,4220.8,4220.7,2.36927523]
[1754836673123,0.9181,4220.8,4220.7,2.36927523]
[1754836675007,0.9181,4220.8,4220.4,6.18983257]
[1754836675215,0.9181,4220.7,4220.5,0.21773474]
[1754836675413,1e-08,4220.9,4220.5,2.36938751]
[1754836675605,0.9181,4220.6,4220.5,2.36938751]
[1754836675791,0.9181,4220.6,4220.5,2.58717319]
[1754836676421,0.9181,4220.6,4220.5,0.21778568]
[1754836676618,0.9181,4220.6,4219.9,0.1184]
[1754836676930,1.36523576,4220.5,4220.0,2.58756588]
[1754836677234,1.36523576,4220.5,4219.9,0.1184]
[1754836677235,33.50891252,4220.4,4219.7,0.1184]
[1754836677387,31.13942056,4220.3,4219.8,0.21796054]
[1754836677591,31.13942056,4220.3,4219.7,0.1184]
[1754836677592,30.22132056,4220.2,4219.7,0.1184]
[1754836677794,2.53836124,4220.1,4219.7,0.1184]
[1754836678133,1.0365,4220.2,4219.7,0.1184]
[1754836678134,1e-08,4220.2,4219.9,3.0]
[1754836678344,1e-08,4220.2,4220.1,2.36961209]
[1754836678522,1e-08,4220.2,4220.1,6.28946941]
[1754836678717,1e-08,4220.2,4220.1,6.74716941]
[1754836679034,1e-08,4220.2,4220.1,6.86556941]
[1754836679228,1e-08,4220.2,4220.1,8.08909317]
[1754836679415,1e-08,4220.2,4220.1,11.08909317]
[1754836681216,1e-08,4220.2,4220.1,7.38709317]
[1754836681751,1e-08,4220.2,4220.1,3.92939317]
[1754836681955,0.47250001,4220.2,4220.1,2.70586941]
[1754836682239,0.91810001,4220.2,4220.1,2.70586941]
[1754836682895,0.47250001,4220.2,4220.1,2.70586941]
[1754836683417,0.47250001,4220.2,4220.1,6.40686941]
[1754836684228,0.91810001,4220.2,4220.1,6.40686941]
[1754836684429,0.47250001,4220.2,4220.1,6.40686941]
[1754836684724,1e-08,4220.2,4220.1,6.40686941]
[1754836685030,1e-08,4220.2,4220.1,7.78809318]
[1754836685221,1e-08,4220.2,4220.1,7.33039318]
[1754836685433,1e-08,4220.2,4220.1,6.40686941]
[1754836686144,1e-08,4220.2,4220.1,6.40697006]
[1754836687246,1e-08,4220.2,4220.1,6.86467006]
[1754836688497,1e-08,4220.2,4220.1,6.40697006]
[1754836688698,1e-08,4220.2,4220.1,6.86467006]
[1754836688925,1e-08,4220.2,4220.1,7.78820389]
[1754836689129,1e-08,4220.2,4220.1,10.78820389]
[1754836689313,1e-08,4220.2,4220.1,11.33820389]
[1754836689942,1e-08,4220.2,4220.1,10.78820389]
[1754836691243,1e-08,4220.2,4220.1,7.08720389]
[1754836691397,1e-08,4220.2,4220.1,10.78820389]
[1754836693806,1e-08,4220.2,4220.1,3.62950389]
[1754836694005,0.47250001,4220.2,4220.1,2.70597006]
[1754836694226,1e-08,4220.2,4220.1,2.70597006]
[1754836694426,1e-08,4220.2,4220.1,6.40697006]
[1754836695299,0.91810001,4220.2,4220.1,2.70597006]
[1754836695737,0.47250001,4220.2,4220.1,2.70597006]
[1754836696251,0.91810001,4220.2,4220.1,6.40697006]
[1754836696733,1e-08,4220.2,4220.1,6.18901209]
[1754836696935,1e-08,4220.2,4220.1,7.26290799]
[1754836697109,1e-08,4220.2,4220.1,7.04498369]
[1754836697315,1e-08,4220.2,4220.1,7.26290132]
[1754836698118,0.49790001,4220.2,4220.1,7.26290132]
[1754836698327,1e-08,4220.2,4220.1,6.40592972]
[1754836698540,1e-08,4220.2,4220.1,2.70592972]
[1754836698738,1e-08,4220.2,4220.1,6.40592972]
[1754836698941,0.49790001,4220.2,4220.1,6.40592972]
[1754836699534,1e-08,4220.2,4220.1,6.28752972]
[1754836699723,1e-08,4220.2,4220.1,7.27175309]
[1754836700051,1e-08,4220.2,4220.1,7.7331349]
[1754836703857,1e-08,4220.2,4220.1,3.5717349]
[1754836704044,0.49790001,4220.2,4220.1,7.2717349]
[1754836704243,0.49790001,4220.2,4220.1,3.5717349]
[1754836704548,0.49790001,4220.2,4220.1,7.2717349]
[1754836706840,0.49790001,4220.2,4220.1,6.40591153]
[1754836707445,0.96340001,4220.2,4220.1,6.40591153]
[1754836707835,0.96340001,4220.2,4220.1,2.70591153]
[1754836708570,0.49790001,4220.2,4220.1,2.70591153]
[1754836708770,0.96340001,4220.2,4220.1,2.70591153]
[1754836709338,0.96340001,4220.2,4220.1,2.58751153]
[1754836709868,0.96340001,4220.2,4220.1,0.21789944]
[1754836710162,0.96340001,4220.2,4220.1,2.58751153]
[1754836711429,0.96340001,4220.2,4220.1,0.21789944]
[1754836711631,0.96340001,4220.2,4219.9,2.36972351]
[1754836711835,0.96340001,4220.2,4220.0,0.21816457]
[1754836711836,0.9634,4220.1,4220.0,0.21816457]
[1754836712158,0.9634,4220.1,4219.8,0.001]
[1754836712358,0.1184,4219.9,4219.8,0.001]
[1754836712672,1.0818,4219.9,4219.8,0.001]
[1754836712844,31.0818,4219.9,4219.8,0.001]
[1754836717576,4.3173,4219.9,4219.8,2.37078055]
[1754836718077,3.701,4219.9,4219.8,2.37078055]
[1754836718477,3.701,4219.9,4219.8,2.97518419]
[1754836718689,3.701,4219.9,4219.8,3.19289615]
[1754836719182,3.701,4219.9,4219.8,2.97518419]
[1754836719384,3.701,4219.9,4219.8,3.19290332]
[1754836720080,1e-08,4220.2,4220.1,2.36961209]
[1754836720289,33.70100001,4220.2,4220.1,2.36961209]
[1754836720475,4.16650001,4220.2,4220.1,2.36961209]